Cogmind - Beta 9.6 @@@ ROGUE MODE // 2020.07.04 @ 03:52:46 Player: Kenzurith Result: Destroyed by G-67 Veteran with Plasma Rifle Performance ------------- Evolutions (5) 2500 Regions Visited (20) 4000 Robots Destroyed (240) 1200 Value Destroyed (8928) 8928 Prototype IDs (54) 1080 Alien Tech Used (0) 0 Bonus (3499) 3499 TOTAL SCORE: 21207 Bonus ------- High Alert Combat Kills 1469 Follower Combat Kills 714 Aligned with FarCom 300 Met Data Miner 300 Met Warlord at Base 500 MAIN.C Attacked Warlord 500 Friendly Fire -284 Cogmind --------- Core Integrity 0/1000 Matter 300/300 Energy 100/100 System Corruption 0% Temperature Cool (12) Movement Core (50) Location -4/Proximity Caves Parts ------- > --- POWER (1) -------- (None) > --- PROPULSION (3) --- (None) > --- UTILITY (10) ----- (None) > --- WEAPON (3) ------- (None) > --- INVENTORY (4) ---- Humpback Improved Heavy Armor Plating Peak State ------------ > --- POWER ------------ Light Antimatter Reactor > --- PROPULSION ------- Enhanced Armored Leg Enhanced Armored Leg Enhanced Armored Leg > --- UTILITY ---------- Advanced Heat Sink Advanced Heat Sink Humpback Experimental Matter Compressor Advanced Signal Interpreter Experimental Targeting Computer Experimental Armor Integrity Analyzer Experimental Cloaking Device Improved Power Shielding > --- WEAPON ----------- Gauss Rifle Gauss Rifle Heavy Machine Gun > --- INVENTORY -------- Vortex Chain Reactor Improved Treads Medium Treads Medium Treads Flexi-carbon Leg Flexi-carbon Leg Flexi-carbon Leg Improved Heat Sink Experimental Heat Sink Large Storage Unit Large Storage Unit Humpback Compact Matter Pod Matter Compressor Experimental Terrain Scanner Improved Heavy Armor Plating EM Shield System Backup Module Heavy Machine Gun Heavy Mace [Rating: 104] Favorites ----------- Power Ion Engine Engine Ion Engine Power Core Fission Core Reactor Light Antimatter Reactor Propulsion Carbon-fiber Leg Treads Light Treads Leg Carbon-fiber Leg Flight Unit Nuclear Pulse Thruster Utility Large Storage Unit Device Improved Transmission Jammer Storage Large Storage Unit Processor Advanced Targeting Computer Protection Improved Power Shielding Weapon Gauss Rifle Energy Gun Wave Gun Energy Cannon Proton Cannon Ballistic Gun Gauss Rifle Ballistic Cannon Magnetic Acceleration Cannon Launcher Rocket Launcher Impact Weapon Heavy Hammer Slashing Weapon Great Axe Build | -11 -10 -10 -9 -9 -9 -8 -8 -7 -7 -7 -7 -6 -6 -6 -6 -5 -5 -5 -5 -4 ------- Run | Scr Mat Min Mat Min Exi Min Mat Fac Low Low Dat Pro Fac Was Fac Fac Upp Upp War Pro Slots Evolved 10 | . . . 2 . . . 2 2 . . . . 2 . . 2 . . . . Power . | . . . . . . . . . . . . . . . . . . . . . Propulsion 1 | . . . . . . . 1 . . . . . . . . . . . . . Utility 8 | . . . 2 . . . 1 2 . . . . 1 . . 2 . . . . Weapon 1 | . . . . . . . . . . . . . 1 . . . . . . . Parts Attached 373 | . 8 2 16 2 24 5 20 5 5 11 . 23 53 4 44 87 13 36 8 7 Power 22 | . . . . . 3 . 2 . . 1 . 1 3 . 3 6 . 2 1 . Engine 8 | . . . . . 2 . 1 . . 1 . . 1 . 2 1 . . . . Core 10 | . . . . . . . 1 . . . . 1 2 . . 4 . 2 . . Reactor 4 | . . . . . 1 . . . . . . . . . 1 1 . . 1 . Propulsion 84 | . . . 9 . 9 5 8 1 3 2 . 6 9 . 4 18 1 6 . 3 Treads 27 | . . . 9 . 8 3 2 . 1 . . . . . . . . 1 . 3 Leg 56 | . . . . . 1 2 6 1 2 2 . 5 9 . 4 18 1 5 . . Wheel . | . . . . . . . . . . . . . . . . . . . . . Hover . | . . . . . . . . . . . . . . . . . . . . . Flight 1 | . . . . . . . . . . . . 1 . . . . . . . . Utility 135 | . 3 . 4 . 8 . 1 3 2 3 . 5 26 1 20 34 8 9 7 1 Device 75 | . 1 . . . 2 . . 1 1 2 . 2 14 1 12 25 6 4 4 . Storage 20 | . 2 . 2 . 3 . . . . . . 1 3 . . 3 . 3 2 1 Processor 6 | . . . 1 . 1 . 1 1 . . . . . . . 1 . . 1 . Hackware . | . . . . . . . . . . . . . . . . . . . . . Protection 34 | . . . 1 . 2 . . 1 1 1 . 2 9 . 8 5 2 2 . . Artifact . | . . . . . . . . . . . . . . . . . . . . . Weapon 132 | . 5 2 3 2 4 . 9 1 . 5 . 11 15 3 17 29 4 19 . 3 Energy Gun 21 | . . . . . . . 2 . . 1 . 2 1 . 1 10 2 2 . . Energy Cannon 3 | . . . . . . . . . . . . . 1 . 1 1 . . . . Ballistic Gun 79 | . 4 1 3 1 3 . 7 1 . 2 . 5 10 2 13 12 2 10 . 3 Ballistic Cannon 3 | . . . . . . . . . . . . . 1 . 1 1 . . . . Launcher 19 | . 1 1 . 1 . . . . . 2 . 4 2 . . 3 . 5 . . Special Weapon . | . . . . . . . . . . . . . . . . . . . . . Impact Weapon 2 | . . . . . 1 . . . . . . . . . 1 . . . . . Slashing Weapon 5 | . . . . . . . . . . . . . . 1 . 2 . 2 . . Piercing Weapon . | . . . . . . . . . . . . . . . . . . . . . Special Melee Weapon . | . . . . . . . . . . . . . . . . . . . . . Unidentified Prototypes 21 | . . . 1 . 5 . 3 . . . . 3 1 . 3 1 . . 4 . Parts Lost 92 | . . . . . 7 4 2 . 1 1 . 4 4 1 7 14 5 26 2 14 Power 9 | . . . . . 2 . . . . . . 1 . . 1 1 . 3 . 1 Propulsion 26 | . . . . . 2 4 . . 1 1 . . 3 . 2 1 1 6 . 5 Utility 25 | . . . . . 1 . . . . . . . . . 1 6 1 10 1 5 Weapon 32 | . . . . . 2 . 2 . . . . 3 1 1 3 6 3 7 1 3 Highest Loss Streak 12 | . . . . . 6 4 2 . 1 1 . 1 1 1 2 3 3 10 2 12 Average Slot Usage (%) 96 | . 97 100 100 100 98 95 99 100 100 93 100 99 100 97 99 99 98 84 71 93 Engine 4 | . 14 14 11 11 10 11 5 7 7 7 7 2 . . 2 2 . . . . Core 2 | . . . . . . . 3 . . . . 4 5 6 2 2 5 3 . . Treads 3 | . . . 15 22 21 9 2 . . . . . . . . . . . . . Leg 16 | . 28 28 6 . . 8 24 23 22 16 23 21 20 20 20 16 17 16 17 16 Device 7 | . 5 . . . . . . 7 4 6 7 6 11 13 11 16 11 5 5 16 Storage 21 | . 20 28 28 33 27 33 27 23 23 23 23 23 20 20 20 17 17 20 9 11 Processor 16 | . . . 11 11 12 11 18 15 23 23 23 23 20 20 20 19 23 15 13 17 Protection 2 | . . . 4 . 3 . . 7 2 . . . 1 . 1 3 4 3 5 5 Energy Gun 1 | . . . . . . . . . . 1 7 5 . . . 3 3 . . . Ballistic Gun 16 | . 25 27 22 22 21 22 17 15 15 13 7 8 18 11 19 12 11 10 11 17 Naked Turns 1 | . . . . . . . . . . . . . . . . . . . . 1 Heaviest Build 126 | 11 43 43 75 75 75 75 77 84 79 80 80 84 97 94 99 105 95 96 126 112 Greatest Support 68 | 20 20 20 40 40 40 40 50 57 57 57 55 60 63 59 64 53 58 68 60 60 Greatest Overweight (x) 4 | . 2 2 2 1 3 3 2 1 3 1 1 2 2 1 1 2 1 2 3 4 Average Overweight (x) 1 | . . 2 1 1 1 1 1 1 1 1 1 1 1 1 1 1 1 1 1 1 Largest Inventory Capacity 36 | . 16 16 24 24 24 24 24 24 24 24 24 24 24 24 24 24 24 24 36 24 Average Capacity 22 | . 11 16 18 24 20 24 24 24 24 24 24 24 23 24 24 23 24 21 21 23 Most Carried 24 | . 16 16 21 23 24 24 24 24 24 24 24 24 24 24 24 24 24 18 24 23 Average Carried 21 | . 9 15 17 21 18 23 23 23 23 24 24 23 23 23 23 23 18 13 19 22 Final Capacity 24 | 6 16 16 24 24 24 24 24 24 24 24 24 24 24 24 24 24 24 16 24 4 Final Carried 24 | 6 16 16 21 23 24 24 24 24 24 24 24 22 24 22 24 24 16 11 24 4 Class Distribution -------------------- 27% | Hauler-Mutant 27% | Hauler-Gunner 17% | Scavenger-Gunner 15% | Mutant 10% | Scavenger-Mutant Dominant Class ---------------- Mutant | -10/Materials Mutant | -10/Mines Hauler-Mutant | -9/Materials Hauler-Mutant | -9/Mines Hauler-Mutant | -9/Exiles Hauler-Mutant | -8/Mines Scavenger-Mutant | -8/Materials Hauler-Mutant | -7/Factory Hauler-Mutant | -7/Lower Caves Hauler-Mutant | -7/Lower Caves Hauler-Mutant | -7/Data Miner Hauler-Mutant | -6/Proximity Caves Hauler-Gunner | -6/Factory Hauler-Mutant | -6/Waste Hauler-Gunner | -6/Factory Hauler-Gunner | -5/Factory Scavenger-Gunner | -5/Upper Caves Scavenger-Mutant | -5/Upper Caves Mutant | -5/Warlord Scavenger-Gunner | -4/Proximity Caves Resources | -11 -10 -10 -9 -9 -9 -8 -8 -7 -7 -7 -7 -6 -6 -6 -6 -5 -5 -5 -5 -4 ----------- Run | Scr Mat Min Mat Min Exi Min Mat Fac Low Low Dat Pro Fac Was Fac Fac Upp Upp War Pro Matter Collected 11392 | 200 362 58 536 87 552 259 546 50 135 230 . 440 1385 278 1952 2200 555 941 416 210 Remotely . | . . . . . . . . . . . . . . . . . . . . . Salvage Created 12009 | . 362 22 336 119 156 199 894 50 96 350 . 226 1678 278 1729 3767 624 773 . 350 Parts 521 | . 18 7 24 6 12 12 45 3 5 15 . 13 74 2 63 136 32 39 . 15 Haulers Intercepted 5 | . 1 . 2 . . . . . . . . . . . . 2 . . . . Recyclers Shooed 28 | . 1 . 4 . . 1 . . . . . . 1 . 7 14 . . . . Parts Field Recycled . | . . . . . . . . . . . . . . . . . . . . . Retrieved Matter . | . . . . . . . . . . . . . . . . . . . . . Parts Self-Destructed 161 | . . . . . . . . . 4 9 . 17 . . . . 27 32 59 13 Prevented 6 | . . . . . . . . . . . . . . . . . . . 6 . Kills | -11 -10 -10 -9 -9 -9 -8 -8 -7 -7 -7 -7 -6 -6 -6 -6 -5 -5 -5 -5 -4 ------- Run | Scr Mat Min Mat Min Exi Min Mat Fac Low Low Dat Pro Fac Was Fac Fac Upp Upp War Pro Combat Hostiles Destroyed 180 | . 3 3 6 6 3 5 17 1 2 7 . 7 19 1 22 41 9 23 . 5 Melee 5 | . . . . . . . . . . . . . . . . . . 5 . . Guns 134 | . 2 1 6 4 3 5 17 1 2 . . 2 16 1 21 31 9 8 . 5 Cannons 1 | . . . . . . . . . . . . . . . 1 . . . . . AOE 40 | . 1 2 . 2 . . . . . 7 . 5 3 . . 10 . 10 . . Classes Destroyed 18 | . 3 1 3 . 1 . 3 1 . . . 1 1 1 1 1 . 1 . . Worker 6 | . . . . . . . 1 . . . . . 2 . . 3 . . . . Builder 8 | . . . . . . . 1 . . . . . . . 2 5 . . . . Hauler 5 | . 1 . 2 . . . . . . . . . . . . 2 . . . . Recycler 29 | . 3 . . . . 1 1 . . . . . 5 . 5 14 . . . . Mechanic 1 | . . . . . . . . . . . . . . . . 1 . . . . Operator 1 | . . . . . . . . . . . . . . . 1 . . . . . Watcher 7 | . . . 2 . . . . . . . . . 3 . . 2 . . . . Swarmer 54 | . . 3 3 4 . 3 3 . . 3 . 3 3 . 6 14 . 9 . . Grunt 65 | . 3 . 2 2 . 2 9 . 2 4 . 2 6 . 8 9 5 7 . 4 Brawler 3 | . . . . . . . 1 . . . . . . . . 2 . . . . Duelist 4 | . . . . . . . . . . . . 1 . . 1 1 . . . 1 Sentry 14 | . . . 1 . . . 4 . . . . 1 2 . 2 3 . 1 . . Hunter 14 | . . . . . . . . . . . . . 2 . . 4 4 4 . . Programmer 21 | . . . . . . . . 1 . . . . 6 . 5 8 . 1 . . Compactor 1 | . . . . . . . . . . . . . . 1 . . . . . . Zionite 1 | . . . 1 . . . . . . . . . . . . . . . . . Decomposer 1 | . . . . . . . . . . . . . . . . . 1 . . . Master Thief 1 | . . . . . . . . . . . . . . . . . . 1 . . Assembled 2 | . . . . . 2 . . . . . . . . . . . . . . . Best Kill Streak 8 | . 3 3 3 3 2 3 4 1 2 4 . 3 4 1 6 8 4 7 . 2 Combat Bots Only 7 | . 2 3 3 3 2 3 4 1 2 4 . 3 4 1 4 5 4 7 . 2 Max Kills in Single Turn 4 | . 1 2 1 2 1 1 1 1 1 2 . 3 2 1 2 4 1 4 . 1 Gunslinging 1 | . . . . . . . . . . . . . . . . 1 . . . . Exploded 4 | . 1 2 . 2 . . . . . 2 . 3 2 . . 3 . 4 . . Melee 1 | . . . . . . . . . . . . . . . . . . 1 . . Uniques/NPCs Destroyed 2 | . . . . . 2 . . . . . . . . . . . . . . . EX-BIN (-9/Exiles) 8R-AWN (-9/Exiles) Combat | -11 -10 -10 -9 -9 -9 -8 -8 -7 -7 -7 -7 -6 -6 -6 -6 -5 -5 -5 -5 -4 -------- Run | Scr Mat Min Mat Min Exi Min Mat Fac Low Low Dat Pro Fac Was Fac Fac Upp Upp War Pro Damage Taken 17166 | . 51 66 315 68 982 910 1053 61 466 220 . 639 1761 42 1714 2985 763 3461 344 1265 Core 2139 | . . 9 58 6 104 202 156 . 99 . . 84 150 42 215 308 65 462 . 179 Absorbed by Shields 631 | . . . . . . . . . . . . . . . . 129 94 408 . . Core Remaining (%) 66 | 100 . 96 . . . 7 71 . . . . 73 . . 52 . . . . . Volleys Fired 685 | . 28 3 33 7 41 20 63 6 10 21 . 43 83 10 80 138 29 50 . 20 Largest 3 | . 2 2 2 2 2 2 2 2 2 1 . 2 3 3 3 3 3 3 . 3 Hottest 273 | . 46 46 46 46 46 46 84 46 46 61 . 86 115 113 273 195 149 137 . 88 Shots Fired 1590 | . 53 5 66 13 82 40 126 12 20 21 . 73 244 25 204 356 83 106 1 60 Gun 1516 | . 50 4 66 12 82 40 126 12 20 14 . 63 238 17 196 341 83 91 1 60 Cannon 25 | . . . . . . . . . . . . . 2 8 8 7 . . . . Launcher 49 | . 3 1 . 1 . . . . . 7 . 10 4 . . 8 . 15 . . Special . | . . . . . . . . . . . . . . . . . . . . . Kinetic 1342 | . 50 4 66 12 82 40 123 12 20 . . 30 224 25 203 252 61 77 1 60 Thermal 192 | . . . . . . . 2 . . 14 . 33 14 . 1 92 22 14 . . Explosive 49 | . 3 1 . 1 . . . . . 7 . 10 4 . . 8 . 15 . . Electromagnetic 7 | . . . . . . . 1 . . . . . 2 . . 4 . . . . Robot Hit Streak 44 | . 11 1 9 15 44 15 19 10 28 19 . 10 22 15 13 23 11 19 . 8 Robot Miss Streak 6 | . 3 1 1 . 1 2 3 1 1 . . 3 4 1 6 4 4 4 1 2 Penetration Max 1 | . . . . . . . . . . . . . 1 . 1 1 1 1 . 1 Secondary Targets 19 | . . . . . . . 1 . . . . . 2 . 4 5 1 4 . 2 Max Gunslinging Chain 1 | . . . . . . . 1 . . . . . 1 . 1 1 1 1 . 1 Shots Hit Robots 1205 | . 32 1 50 10 80 30 96 10 18 19 . 56 180 23 152 265 60 77 1 45 Core Hits 546 | . 13 3 17 7 17 12 37 2 7 13 . 28 91 7 75 137 20 43 . 17 Critical Hits 47 | . 1 . . . 1 . 1 . . . . . 5 . 9 15 10 5 . . Critical Kills 18 | . 1 . . . . . . . . . . . 3 . 4 5 3 2 . . Critical Parts Destroyed 26 | . . . . . . . 1 . . . . . 2 . 4 10 7 2 . . Melee Attacks 42 | . . . . . 1 . . . . . . . . 16 . 6 . 18 1 . Impact 1 | . . . . . 1 . . . . . . . . . . . . . . . Slashing 41 | . . . . . . . . . . . . . . 16 . 6 . 18 1 . Piercing . | . . . . . . . . . . . . . . . . . . . . . Sneak Attacks 2 | . . . . . 1 . . . . . . . . . . . . . 1 . Combat Hostiles . | . . . . . . . . . . . . . . . . . . . . . Follow-up Attacks . | . . . . . . . . . . . . . . . . . . . . . Damage Inflicted 30540 | . 555 168 739 290 1261 410 1381 143 296 937 . 1902 4070 588 3645 8436 1104 3366 138 1111 Guns 22103 | . 481 12 728 162 1207 410 1357 143 296 280 . 939 3183 381 2884 6321 1104 1104 . 1111 Cannons 605 | . . . . . . . . . . . . . 66 207 109 223 . . . . Explosions 7213 | . 74 156 . 128 . . . . . 657 . 963 798 . 639 1892 . 1906 . . Melee 530 | . . . . . 54 . . . . . . . . . . . . 356 120 . Ramming 89 | . . . 11 . . . 24 . . . . . 23 . 13 . . . 18 . Kinetic 18820 | . 481 12 728 162 1207 410 1317 143 296 . . 355 2938 588 2973 4557 701 841 . 1111 Thermal 4956 | . . . . . . . 40 . . 280 . 584 629 . 659 2098 403 263 . . Explosive 5914 | . 74 156 . 128 . . . . . 657 . 963 377 . . 1653 . 1906 . . Electromagnetic 231 | . . . . . . . . . . . . . 103 . . 128 . . . . Impact 54 | . . . . . 54 . . . . . . . . . . . . . . . Slashing 476 | . . . . . . . . . . . . . . . . . . 356 120 . Piercing . | . . . . . . . . . . . . . . . . . . . . . Highest Corruption 47 | . 3 3 . . . . . . . . . . 11 42 47 10 10 12 12 . Average Corruption 13 | . 2 3 . . . . . . . . . . 4 28 44 5 10 10 12 . Corruption Purged . | . . . . . . . . . . . . . . . . . . . . . Effects 563 | . 12 9 . . . . . . . . . . 78 40 286 50 34 52 2 . Message Errors 89 | . 3 5 . . . . . . . . . . 25 7 27 11 5 6 . . Matter Fused 66 | . 2 1 . . . . . . . . . . 15 7 23 7 7 4 . . Heat Flow Errors 35 | . 2 . . . . . . . . . . . 8 3 16 2 1 3 . . Energy Discharges 27 | . 1 1 . . . . . . . . . . 6 1 9 2 3 3 1 . Parts Rejected 4 | . . . . . . . . . . . . . . 1 2 . . 1 . . Data Loss (minor) 46 | . 2 2 . . . . . . . . . . 5 2 17 5 7 6 . . Data Loss (major) 16 | . . . . . . . . . . . . . 2 . 10 1 . 3 . . Misfires 14 | . . . . . . . . . . . . . 3 . 3 1 3 3 1 . Alerts 2 | . . . . . . . . . . . . . . . 1 . . 1 . . Misdirections 74 | . . . . . . . . . . . . . 5 9 45 6 2 7 . . Targeting Errors 152 | . 2 . . . . . . . . . . . 9 9 106 9 3 14 . . Weapon Failures 38 | . . . . . . . . . . . . . . 1 27 6 3 1 . . Overload Shots . | . . . . . . . . . . . . . . . . . . . . . Overflow Damage 746 | . . . . 5 53 . . . . 82 . 15 64 . 64 245 . 158 60 . Projectiles . | . . . . . . . . . . . . . . . . . . . . . Explosions 633 | . . . . 5 . . . . . 82 . 15 64 . 64 245 . 158 . . Melee 113 | . . . . . 53 . . . . . . . . . . . . . 60 . Knockbacks 1 | . . . . . . . . . . . . . . . 1 . . . . . Impact . | . . . . . . . . . . . . . . . . . . . . . Kinetic 1 | . . . . . . . . . . . . . . . 1 . . . . . Secondary . | . . . . . . . . . . . . . . . . . . . . . Self-Inflicted Damage 810 | . . 31 . . . . 12 . . 48 . . 107 . 178 . . 425 9 . Shots 17 | . . 1 . . . . . . . 1 . . 2 . 4 . . 9 . . Rammed 6 | . . . 1 . . . 2 . . . . . 2 . . . . . 1 . Targets Rammed 8 | . . . 1 . . . 2 . . . . . 2 . 2 . . . 1 . Kicked 2 | . . . . . . . . . . . . . . . 2 . . . . . Crushed . | . . . . . . . . . . . . . . . . . . . . . Highest Temperature 375 | . 162 . 4 . . 6 24 . 21 54 . 185 238 190 375 264 252 268 . 19 Average Temperature 60 | . 66 . 2 . . 2 11 . 9 19 . 51 50 41 84 84 35 98 . 10 Received Heat Transfer 2621 | . 27 . 84 . 69 162 432 . 153 54 . 138 252 . 348 300 125 294 9 174 Effects 2 | . . . . . . . . . . . . . . . 2 . . . . . Interference 2 | . . . . . . . . . . . . . . . 2 . . . . . Siege Activations . | . . . . . . . . . . . . . . . . . . . . . Robots Corrupted . | . . . . . . . . . . . . . . . . . . . . . Combat Hostiles . | . . . . . . . . . . . . . . . . . . . . . Parts Fried 3 | . . . . . 2 . . . . . . . 1 . . . . . . . Impact Corruptions 2 | . . . . . 2 . . . . . . . . . . . . . . . Robots Melted . | . . . . . . . . . . . . . . . . . . . . . Combat Hostiles . | . . . . . . . . . . . . . . . . . . . . . Parts Melted 8 | . . . . . . . . . . . . . 1 . 1 6 . . . . Heat Transferred 7959 | . . . . . . . 74 . . 518 . 1073 657 . 1470 3131 629 407 . . Parts Sabotaged . | . . . . . . . . . . . . . . . . . . . . . Parts Stolen 7 | . . . . . . . . . . . . 3 . . . . 3 1 . . Parts Stripped . | . . . . . . . . . . . . . . . . . . . . . Power Chain Reactions 1 | . . . . . . . . . . . . . . . . 1 . . . . Missiles Intercepted . | . . . . . . . . . . . . . . . . . . . . . Alert | -11 -10 -10 -9 -9 -9 -8 -8 -7 -7 -7 -7 -6 -6 -6 -6 -5 -5 -5 -5 -4 ------- Run | Scr Mat Min Mat Min Exi Min Mat Fac Low Low Dat Pro Fac Was Fac Fac Upp Upp War Pro Peak Influence 1123 | . 97 70 180 208 . 110 259 63 . . . . 862 320 415 1123 . . . . Average Influence 292 | . 20 57 96 80 . 29 115 23 . . . . 480 297 149 536 . . . . Maximum Alert Level 4 | . . . . 1 . . 1 . . . . . 3 1 2 4 . . . . Low Security (%) 53 | . 100 100 100 83 . 100 80 100 . . . . 30 . 67 12 . . . . Level 1 20 | . . . . 16 . . 19 . . . . . 17 99 27 33 . . . . Level 2 4 | . . . . . . . . . . . . . 3 . 4 11 . . . . Level 3 21 | . . . . . . . . . . . . . 48 . . 38 . . . . Level 4 . | . . . . . . . . . . . . . . . . 3 . . . . Level 5 . | . . . . . . . . . . . . . . . . . . . . . High Security . | . . . . . . . . . . . . . . . . . . . . . Max Security . | . . . . . . . . . . . . . . . . . . . . . Squads Dispatched 33 | . 1 1 1 . . . 1 2 . . . . 11 . 5 11 . . . . Investigation 4 | . . 1 . . . . . . . . . . . . 1 2 . . . . Extermination 15 | . . . . . . . . 1 . . . . 7 . 4 3 . . . . Reinforcement 10 | . 1 . 1 . . . 1 1 . . . . 2 . . 4 . . . . Assault 4 | . . . . . . . . . . . . . 2 . . 2 . . . . Garrison . | . . . . . . . . . . . . . . . . . . . . . Intercept . | . . . . . . . . . . . . . . . . . . . . . Construction Impeded 3 | . . . . . . . . . . . . . . . . 3 . . . . Haulers Reinforced . | . . . . . . . . . . . . . . . . . . . . . Stealth | -11 -10 -10 -9 -9 -9 -8 -8 -7 -7 -7 -7 -6 -6 -6 -6 -5 -5 -5 -5 -4 --------- Run | Scr Mat Min Mat Min Exi Min Mat Fac Low Low Dat Pro Fac Was Fac Fac Upp Upp War Pro Distress Signals 7 | . . . 2 . . . 1 . . . . . . . . 3 . . 1 . Communications Jammed 33 | . . . . . . . . . . . . . . . 11 22 . . . . Distress Signals 26 | . . . . . . . . . . . . . . . 7 19 . . . . Times Spotted 320 | . 11 3 14 13 8 12 24 3 3 7 . 20 31 5 29 62 11 34 9 21 Peak Tracking Total 10 | . 3 3 5 8 9 8 5 2 3 4 . 4 5 3 5 6 4 8 10 7 Tactical Retreats 33 | . . . 1 . . 1 . . 1 . . 2 2 2 4 6 . 10 . 4 Traps | -11 -10 -10 -9 -9 -9 -8 -8 -7 -7 -7 -7 -6 -6 -6 -6 -5 -5 -5 -5 -4 ------- Run | Scr Mat Min Mat Min Exi Min Mat Fac Low Low Dat Pro Fac Was Fac Fac Upp Upp War Pro Traps Triggered 13 | . 2 . . . . . . . . . . . 3 . 2 6 . . . . Indirectly . | . . . . . . . . . . . . . . . . . . . . . Trap Hack Attempts . | . . . . . . . . . . . . . . . . . . . . . Triggered . | . . . . . . . . . . . . . . . . . . . . . Disarmed . | . . . . . . . . . . . . . . . . . . . . . Reprogrammed . | . . . . . . . . . . . . . . . . . . . . . Reused . | . . . . . . . . . . . . . . . . . . . . . Traps Extracted . | . . . . . . . . . . . . . . . . . . . . . Installed . | . . . . . . . . . . . . . . . . . . . . . Triggered 11 | . . . . . . . . . . . . . . . . . . . 11 . Exploded 3 | . . . . . 3 . . . . . . . . . . . . . . . Machines | -11 -10 -10 -9 -9 -9 -8 -8 -7 -7 -7 -7 -6 -6 -6 -6 -5 -5 -5 -5 -4 ---------- Run | Scr Mat Min Mat Min Exi Min Mat Fac Low Low Dat Pro Fac Was Fac Fac Upp Upp War Pro Machines Disabled 43 | . 2 . . . . . 1 . . . . . 19 . 10 11 . . . . Max in Single Turn 7 | . 1 . . . . . 1 . . . . . 7 . 7 3 . . . . Garrison Access 2 | . . . . . . . 1 . . . . . 1 . . . . . . . Machines Sabotaged . | . . . . . . . . . . . . . . . . . . . . . Garrisons Compromised . | . . . . . . . . . . . . . . . . . . . . . Overloaded Fab Kills . | . . . . . . . . . . . . . . . . . . . . . Fab Network Shutdowns 1 | . . . . . . . . . . . . . 1 . . . . . . . Hacking | -11 -10 -10 -9 -9 -9 -8 -8 -7 -7 -7 -7 -6 -6 -6 -6 -5 -5 -5 -5 -4 --------- Run | Scr Mat Min Mat Min Exi Min Mat Fac Low Low Dat Pro Fac Was Fac Fac Upp Upp War Pro Machines Accessed 37 | . 1 1 2 1 1 . 4 3 . . 4 . 7 . 7 5 . . 1 . Terminals 20 | . 1 . 2 1 . . 3 3 . . . . 2 . 6 2 . . . . Fabricators 4 | . . . . . . . . . . . . . 2 . 1 1 . . . . Repair Stations 3 | . . . . . . . . . . . . . 1 . . 2 . . . . Recycling Units . | . . . . . . . . . . . . . . . . . . . . . Scanalyzers 1 | . . . . . . . . . . . . . 1 . . . . . . . Garrison Access 2 | . . . . . . . 1 . . . . . 1 . . . . . . . Total Hacks 111 | . 3 1 6 3 1 . 12 8 . . 26 . 21 . 15 14 . . 1 . Successful 59 | . 3 1 1 1 1 . 6 4 . . 26 . 12 . . 3 . . 1 . Failed 52 | . . . 5 2 . . 6 4 . . . . 9 . 15 11 . . . . Catastrophic 13 | . . . . . . . . 2 . . . . 2 . 5 4 . . . . Database Lockouts . | . . . . . . . . . . . . . . . . . . . . . Manual 52 | . 2 . 6 3 1 . 7 8 . . . . 5 . 14 5 . . 1 . Terminals 55 | . 3 . 6 3 . . 11 8 . . . . 5 . 14 5 . . . . Fabricators 13 | . . . . . . . . . . . . . 8 . 1 4 . . . . Repair Stations 7 | . . . . . . . . . . . . . 2 . . 5 . . . . Recycling Units . | . . . . . . . . . . . . . . . . . . . . . Scanalyzers 4 | . . . . . . . . . . . . . 4 . . . . . . . Garrison Access 3 | . . . . . . . 1 . . . . . 2 . . . . . . . Terminal Hacks 37 | . 2 1 . 1 1 . 4 1 . . 26 . . . . . . . 1 . Record 11 | . . . . . . . . . . . 11 . . . . . . . . . Part Schematic 6 | . . . . . . . . . . . 6 . . . . . . . . . Robot Schematic 6 | . . . . . . . . . . . 6 . . . . . . . . . Robot Analysis 1 | . 1 . . . . . . . . . . . . . . . . . . . Prototype ID Bank 3 | . . . . . . . . . . . 3 . . . . . . . . . Open Door 2 | . . 1 . . . . . . . . . . . . . . . . 1 . Terminal Index 1 | . . . . . . . 1 . . . . . . . . . . . . . Alert Level 1 | . . . . . . . 1 . . . . . . . . . . . . . Unreport Threat 4 | . 1 . . 1 . . 1 1 . . . . . . . . . . . . Registered Components 1 | . . . . . . . 1 . . . . . . . . . . . . . EX-Prototype ID Bank 1 | . . . . . 1 . . . . . . . . . . . . . . . Fabricator Hacks 6 | . . . . . . . . . . . . . 5 . . 1 . . . . Load Schematic 3 | . . . . . . . . . . . . . 2 . . 1 . . . . Build 3 | . . . . . . . . . . . . . 3 . . . . . . . Repair Station Hacks 2 | . . . . . . . . . . . . . . . . 2 . . . . Scan Component 1 | . . . . . . . . . . . . . . . . 1 . . . . Repair 1 | . . . . . . . . . . . . . . . . 1 . . . . Recycling Unit Hacks . | . . . . . . . . . . . . . . . . . . . . . Scanalyzer 4 | . . . . . . . . . . . . . 4 . . . . . . . Insert Component 2 | . . . . . . . . . . . . . 2 . . . . . . . Analyze 2 | . . . . . . . . . . . . . 2 . . . . . . . Garrison Access Hacks 2 | . . . . . . . 1 . . . . . 1 . . . . . . . Seal Access 2 | . . . . . . . 1 . . . . . 1 . . . . . . . Unauthorized Hacks 8 | . 1 . 1 . . . 1 3 . . . . 2 . . . . . . . Terminals 8 | . 1 . 1 . . . 1 3 . . . . 2 . . . . . . . Assimilate 1 | . . . . . . . . . . . . . 1 . . . . . . . Botnet 7 | . 1 . 1 . . . 1 3 . . . . 1 . . . . . . . Fabricators . | . . . . . . . . . . . . . . . . . . . . . Repair Stations . | . . . . . . . . . . . . . . . . . . . . . Recycling Units . | . . . . . . . . . . . . . . . . . . . . . Scanalyzers . | . . . . . . . . . . . . . . . . . . . . . Garrison Access . | . . . . . . . . . . . . . . . . . . . . . Data Cores Recovered 1 | . . . . . . . . . . . . . . . 1 . . . . . Used . | . . . . . . . . . . . . . . . . . . . . . Hacking Detections 27 | . . . 2 1 . . 3 3 . . . . 6 . 7 5 . . . . Full Trace Events 3 | . . . . . . . . . . . . . . . 1 2 . . . . Feedback Events 1 | . . . . . . . . . . . . . . . . 1 . . . . Corruption 1 | . . . . . . . . . . . . . . . . 1 . . . . Feedback Blocked . | . . . . . . . . . . . . . . . . . . . . . Robot Schematics Acquired 6 | . . . . . . . . . . . 6 . . . . . . . . . Robots Built . | . . . . . . . . . . . . . . . . . . . . . Matter . | . . . . . . . . . . . . . . . . . . . . . Time . | . . . . . . . . . . . . . . . . . . . . . Total Robot Build Rating . | . . . . . . . . . . . . . . . . . . . . . Part Schematics Acquired 8 | . . . . . . . . . . . 6 . 2 . . . . . . . Parts Built 3 | . . . . . . . . . . . . . 3 . . . . . . . Matter 855 | . . . . . . . . . . . . . 855 . . . . . . . Time 456 | . . . . . . . . . . . . . 456 . . . . . . . Total Part Build Rating 15 | . . . . . . . . . . . . . 15 . . . . . . . Parts Repaired 1 | . . . . . . . . . . . . . . . . 1 . . . . Time 13 | . . . . . . . . . . . . . . . . 13 . . . . Parts Recycled . | . . . . . . . . . . . . . . . . . . . . . Recycled Matter . | . . . . . . . . . . . . . . . . . . . . . Retrieved Matter . | . . . . . . . . . . . . . . . . . . . . . Retrieved Components . | . . . . . . . . . . . . . . . . . . . . . Parts Scanalyzed 2 | . . . . . . . . . . . . . 2 . . . . . . . Part Schematics Acquired 2 | . . . . . . . . . . . . . 2 . . . . . . . Parts Damaged . | . . . . . . . . . . . . . . . . . . . . . Bothacking | -11 -10 -10 -9 -9 -9 -8 -8 -7 -7 -7 -7 -6 -6 -6 -6 -5 -5 -5 -5 -4 ------------ Run | Scr Mat Min Mat Min Exi Min Mat Fac Low Low Dat Pro Fac Was Fac Fac Upp Upp War Pro Used RIF Installer . | . . . . . . . . . . . . . . . . . . . . . Robots Hacked . | . . . . . . . . . . . . . . . . . . . . . Non-combat . | . . . . . . . . . . . . . . . . . . . . . Combat . | . . . . . . . . . . . . . . . . . . . . . Robot Hacks Applied . | . . . . . . . . . . . . . . . . . . . . . Relay Couplers Released . | . . . . . . . . . . . . . . . . . . . . . Robots Rewired 5 | . . . . . . . . . . . . . . . . . . . 5 . Allies Hacked . | . . . . . . . . . . . . . . . . . . . . . Hacks Repelled . | . . . . . . . . . . . . . . . . . . . . . Allies | -11 -10 -10 -9 -9 -9 -8 -8 -7 -7 -7 -7 -6 -6 -6 -6 -5 -5 -5 -5 -4 -------- Run | Scr Mat Min Mat Min Exi Min Mat Fac Low Low Dat Pro Fac Was Fac Fac Upp Upp War Pro Total Allies 12 | . . 2 . 4 . . . . . . . 1 . . . . . . 5 . Largest Group 5 | . . 2 2 4 3 . . . . . . 1 . . . . . . 5 . Highest-Rated Group 222 | . . 45 45 71 40 . . . . . . 94 . . . . . . 222 . Highest-Rated Ally 94 | . . 31 31 31 16 . . . . . . 94 . . . . . . 49 . Total Orders 7 | . . . . . 5 . . . . . . . 2 . . . . . . . GOTO 5 | . . . . . 5 . . . . . . . . . . . . . . . EXPLORE 1 | . . . . . . . . . . . . . 1 . . . . . . . RETURN 1 | . . . . . . . . . . . . . 1 . . . . . . . Ally Attacks 129 | . . . 10 26 17 . . . . . . 53 . . . . . . 23 . Total Damage 2668 | . . . 128 291 137 . . . . . . 1403 . . . . . . 709 . Kills 29 | . . . 4 9 2 . . . . . . 9 . . . . . . 5 . Allies Corrupted . | . . . . . . . . . . . . . . . . . . . . . Allies Melted 1 | . . . 1 . . . . . . . . . . . . . . . . . Intel | -11 -10 -10 -9 -9 -9 -8 -8 -7 -7 -7 -7 -6 -6 -6 -6 -5 -5 -5 -5 -4 ------- Run | Scr Mat Min Mat Min Exi Min Mat Fac Low Low Dat Pro Fac Was Fac Fac Upp Upp War Pro Robot Analysis Total 1 | . 1 . . . . . . . . . . . . . . . . . . . Derelict Logs Recovered 9 | . . 1 . 1 . . . . 1 1 . 2 . . . . 1 . . 2 Drone Launches 3 | . . . . . . 1 . . . . . . 2 . . . . . . . Drone Recoveries . | . . . . . . . . . . . . . . . . . . . . . Exploration | -11 -10 -10 -9 -9 -9 -8 -8 -7 -7 -7 -7 -6 -6 -6 -6 -5 -5 -5 -5 -4 ------------- Run | Scr Mat Min Mat Min Exi Min Mat Fac Low Low Dat Pro Fac Was Fac Fac Upp Upp War Pro Turns Passed 21136 | . 865 485 675 1048 1769 180 961 520 419 599 135 1208 3670 403 1980 2639 731 932 1177 740 Spaces Moved 10990 | 1 509 251 290 562 850 62 458 321 249 349 91 587 1947 201 1040 1307 415 445 617 438 Core 1 | . . . . . . . . . . . . . . . . . . . . 1 Treads 1637 | . . . 194 562 850 27 . . 3 . . . . . . . . . . 1 Legs 9352 | 1 509 251 96 . . 35 458 321 246 349 91 587 1947 201 1040 1307 415 445 617 436 Wheels . | . . . . . . . . . . . . . . . . . . . . . Hover . | . . . . . . . . . . . . . . . . . . . . . Flight . | . . . . . . . . . . . . . . . . . . . . . Fastest Speed 50 | 120 120 180 180 180 180 150 150 153 153 150 150 150 150 150 150 150 150 120 120 50 Average Speed 156 | 120 147 180 180 180 180 171 151 153 153 150 150 156 150 150 150 150 150 150 162 150 Slowest Speed 240 | 120 180 180 200 180 220 220 183 153 220 153 150 180 180 150 150 180 150 180 210 240 Overloaded Moves . | . . . . . . . . . . . . . . . . . . . . . Propulsion Burnouts . | . . . . . . . . . . . . . . . . . . . . . Robots Hopped . | . . . . . . . . . . . . . . . . . . . . . Cave-ins Triggered . | . . . . . . . . . . . . . . . . . . . . . Exploration Rate (%) 48 | 2 47 73 31 98 44 18 38 11 44 51 68 78 42 95 27 26 58 53 71 48 Regions Visited 20 Branch Regions 12 Pre-discovered Areas 5 | . . 1 . . . . . . . . 1 . . . . . 1 . . 2 Known Exits Taken 10 | . . . . . . . . 1 1 1 1 1 . . 1 1 1 1 1 . Unknown Exits Taken 8 | 1 1 1 1 1 1 1 1 . . . . . . . . . . . . . Scrap Searched 7 | . . . . 2 . 1 . . . . . 3 . . . . . 1 . . Spaces Dug 34 | . 4 . . . . . . . . . . . 8 16 . 6 . . . . Terrain Destroyed 604 | . 26 10 . 8 . . . . . 50 . 65 82 17 44 85 6 210 . 1 Melee 22 | . . . . . . . . . . . . . . 16 . 6 . . . . Projectile 23 | . . . . . . . . . . . . . . 1 4 5 6 6 . 1 AOE 559 | . 26 10 . 8 . . . . . 50 . 65 82 . 40 74 . 204 . . Actions | -11 -10 -10 -9 -9 -9 -8 -8 -7 -7 -7 -7 -6 -6 -6 -6 -5 -5 -5 -5 -4 --------- Run | Scr Mat Min Mat Min Exi Min Mat Fac Low Low Dat Pro Fac Was Fac Fac Upp Upp War Pro Total 13546 | . 575 283 378 585 1012 96 605 341 267 399 90 814 2549 254 1287 1699 461 591 786 474 Wait 980 | . 2 16 18 13 45 1 23 . 3 17 . 130 394 24 71 80 1 17 117 8 Move 10971 | . 508 250 289 561 849 61 457 320 248 348 90 586 1947 200 1039 1306 414 444 616 438 Hop . | . . . . . . . . . . . . . . . . . . . . . Pick Up 218 | . 17 6 10 2 23 6 17 6 1 . . 14 33 . 18 36 3 14 11 1 Fast Attach 103 | . 2 . 3 . 8 . 3 . 1 1 . 7 8 2 23 28 . 6 8 3 Attach 112 | . 1 . 3 . 11 4 6 3 1 . . 4 10 2 6 22 6 29 . 4 Detach 36 | . 1 . . . 7 . 1 . . . . . 2 . 2 8 . 12 3 . Swap 158 | . 5 2 10 2 5 1 11 2 3 10 . 12 35 . 15 37 7 1 . . Drop 206 | . 11 6 11 . 22 2 22 4 . 2 . 18 34 . 31 38 1 . 4 . Fire 685 | . 28 3 33 7 41 20 63 6 10 21 . 43 83 10 80 138 29 50 . 20 Melee 42 | . . . . . 1 . . . . . . . . 16 . 6 . 18 1 . Ram . | . . . . . . . . . . . . . . . . . . . . . Kick 7 | . . . . . . . 2 . . . . . 2 . 2 . . . 1 . Crush 1 | . . . 1 . . . . . . . . . . . . . . . . . Escape Stasis . | . . . . . . . . . . . . . . . . . . . . . Rewire 25 | . . . . . . . . . . . . . . . . . . . 25 . Trap . | . . . . . . . . . . . . . . . . . . . . . Miscellaneous 2 | . . . . . . 1 . . . . . . 1 . . . . . . . Route ------- -11/Scrapyard -10/Materials (discovered 2 exits: *Mat / *Min) -10/Mines -9/Materials -9/Mines (discovered 3 exits: *Mat x2 / *Exi) -9/Exiles -8/Mines -8/Materials (discovered 2 exits: *Fac x2) -7/Factory -7/Lower Caves -7/Lower Caves -7/Data Miner -6/Proximity Caves -6/Factory (discovered 4 exits: *Fac x4) -6/Waste -6/Factory -5/Factory (discovered 2 exits: [*Fac] / *Upp) -5/Upper Caves -5/Upper Caves -5/Warlord -4/Proximity Caves History --------- Turn | Location | Event 1 | -11/Scrapyard | Discovered new exit (range 0) 1 | -11/Scrapyard | Entered Materials 124 | -10/Materials | Discovered new exit (range 13) 297 | -10/Materials | Discovered new exit (range 8) 330 | -10/Materials | Build established: Mutant 866 | -10/Materials | Entered Mines 1048 | -10/Mines | Received a Rocket Launcher from a helpful Derelict 1123 | -10/Mines | Learned location of Zion (-6) 1212 | -10/Mines | Met a Derelict shopkeep closing up shop 1310 | -10/Mines | Discovered new exit (range 11) 1351 | -10/Mines | Entered Materials 1351 | -9/Materials | Accompanied by 2 allies 1351 | -9/Materials | Evolved 2 slots: Utility x2 1356 | -9/Materials | Led the pair of lost Derelicts to an unsafe place 1981 | -9/Materials | Build established: Hauler-Mutant 1992 | -9/Materials | Discovered new exit (range 10) 2026 | -9/Materials | Entered Mines 2063 | -9/Mines | Met a Derelict bent on vengeance 2086 | -9/Mines | Assisted by bots powering up and referring to "LRC-V3" 2218 | -9/Mines | Received a Mining Laser from a helpful Derelict 2338 | -9/Mines | Discovered new exit (range 6) 2591 | -9/Mines | Learned 2 Materials zone layouts 2602 | -9/Mines | Discovered new exit (range 10) 3065 | -9/Mines | Deemed a non-threat by the Exiles lab entrance 3067 | -9/Mines | Discovered new exit (range 5) 3074 | -9/Mines | Entered Exiles 3074 | -9/Exiles | Accompanied by 3 allies 3101 | -9/Exiles | Discovered new exit (range 15) 3123 | -9/Exiles | Met 8R-AWN 3148 | -9/Exiles | Met EX-HEX 3258 | -9/Exiles | Met EX-BIN 3389 | -9/Exiles | Aligned with FarCom system 3391 | -9/Exiles | Given EX-Vault access code 3433 | -9/Exiles | Opened EX-Vault 3760 | -9/Exiles | Warned to stay clear of 0b10 Research branches 3838 | -9/Exiles | Build established: Mutant 4021 | -9/Exiles | Attacked by the Exiles 4037 | -9/Exiles | Destroyed EX-BIN 4231 | -9/Exiles | Destroyed 8R-AWN 4240 | -9/Exiles | Lost 6 parts (1p2n1u2w) 4398 | -9/Exiles | Found Prototype Device 4398 | -9/Exiles | Identified AS-neutralizer No. 17b 4434 | -9/Exiles | Found Prototype Protection 4434 | -9/Exiles | Identified 8R-AWN's Armor/EX 4506 | -9/Exiles | Found Prototype Processor 4644 | -9/Exiles | Found AWS/Autocannon 4649 | -9/Exiles | Found Supersonic Drone Bay 4661 | -9/Exiles | Found Firepult 4697 | -9/Exiles | Build established: Hauler-Mutant 4843 | -9/Exiles | Stole three prototypes: Supersonic Drone Bay, Firepult, AWS/Autocannon 4843 | -9/Exiles | Entered Mines 4867 | -8/Mines | 99-TNT came to Exiles' defense 4874 | -8/Mines | Core integrity fell below 50% 4902 | -8/Mines | Core integrity fell below 20% 4929 | -8/Mines | Lost 4 parts (4n) 4996 | -8/Mines | Discovered new exit (range 5) 5023 | -8/Mines | Entered Materials 5023 | -8/Materials | Evolved 2 slots: Propulsion x1, Utility x1 5029 | -8/Materials | Identified Exp. Targeting Computer 5370 | -8/Materials | Discovered new exit (range 5) 5816 | -8/Materials | Build established: Scavenger-Mutant 5966 | -8/Materials | Discovered new exit (range 5) 5984 | -8/Materials | Entered Factory 5984 | -7/Factory | Evolved 2 slots: Utility x2 6228 | -7/Factory | Build established: Hauler-Mutant 6491 | -7/Factory | Discovered new exit (range 5) 6503 | -7/Factory | Identified exit to Lower Caves 6504 | -7/Factory | Entered Lower Caves 6863 | -7/Lower Caves | Learned location of 1 exit from Factory 6911 | -7/Lower Caves | Discovered new exit (range 9) 6921 | -7/Lower Caves | Identified exit to Lower Caves 6923 | -7/Lower Caves | Entered another Lower Caves area 6965 | -7/Lower Caves | Learned Factory emergency access door positions 7406 | -7/Lower Caves | Discovered new exit (range 9) 7521 | -7/Lower Caves | Identified exit to Data Miner 7522 | -7/Lower Caves | Entered Data Miner 7522 | -7/Data Miner | Discovered new exit (range 6) 7551 | -7/Data Miner | Met Data Miner 7578 | -7/Data Miner | Learned location of Section 7 (-2) 7578 | -7/Data Miner | Acquired the access code to Warlord's prototype stash 7608 | -7/Data Miner | Received God Mode back door access code from Data Miner 7654 | -7/Data Miner | Identified exit to Proximity Caves 7657 | -7/Data Miner | Entered Proximity Caves 8026 | -6/Proximity Caves | Spotted 29-TC3(f) 8028 | -6/Proximity Caves | Escorted by Enhanced Grunt 8028 | -6/Proximity Caves | Encountered a Master Thief 8028 | -6/Proximity Caves | Spotted 9V-0US(f) 8029 | -6/Proximity Caves | Encountered a Master Thief 8029 | -6/Proximity Caves | Firepult stolen by Master Thief 8030 | -6/Proximity Caves | Allies destroyed 9V-0US(f) 8054 | -6/Proximity Caves | Allies destroyed 29-TC3(f) 8064 | -6/Proximity Caves | Spotted SG-EGL(f) 8065 | -6/Proximity Caves | Encountered a Master Thief 8065 | -6/Proximity Caves | Spotted 44-YFO(f) 8066 | -6/Proximity Caves | Encountered a Master Thief 8069 | -6/Proximity Caves | Adv. Myomer Leg stolen by Master Thief 8072 | -6/Proximity Caves | Allies destroyed SG-EGL(f) 8346 | -6/Proximity Caves | Learned 4 Factory zone layouts 8547 | -6/Proximity Caves | Attracted the attention of an 0b10 checkpoint 8589 | -6/Proximity Caves | Found Prototype Device 8589 | -6/Proximity Caves | Identified Exp. Thermal Shield 8665 | -6/Proximity Caves | Build established: Scavenger-Mutant 8750 | -6/Proximity Caves | Spotted WJ-23U(f) 8752 | -6/Proximity Caves | Encountered a Master Thief 8768 | -6/Proximity Caves | Greatsword stolen by Master Thief 8856 | -6/Proximity Caves | Discovered new exit (range 5) 8861 | -6/Proximity Caves | Spotted 6A-8MK(f) 8862 | -6/Proximity Caves | Encountered a Master Thief 8864 | -6/Proximity Caves | Identified exit to Factory 8865 | -6/Proximity Caves | Entered Factory 8865 | -6/Factory | Evolved 2 slots: Utility x1, Weapon x1 8866 | -6/Factory | Identified exit to Factory 9152 | -6/Factory | Build established: Scavenger-Gunner 9418 | -6/Factory | Discovered exit to Factory (range 14) 10275 | -6/Factory | Fabricated Exp. Sensor Array (x1) 10341 | -6/Factory | Build established: Hauler-Gunner 10436 | -6/Factory | Fabricated Exp. Sensor Array (x1) 10596 | -6/Factory | Fabricated Exp. Sensor Array? 10690 | -6/Factory | Local fabrication network quarantined 11010 | -6/Factory | Discovered exit to Factory (range 10) 12015 | -6/Factory | First assault squad dispatched 12042 | -6/Factory | Incoming assault squad redirected 12129 | -6/Factory | System corruption reached 10% 12385 | -6/Factory | Incoming assault squad redirected 12535 | -6/Factory | Sucked down chute 12535 | -6/Factory | Entered Waste 12550 | -6/Waste | EMP discharged 12639 | -6/Waste | Spotted C-40 Crusher 12650 | -6/Waste | EMP discharged 12651 | -6/Waste | Destroyed C-40 Crusher 12659 | -6/Waste | Spotted C-40 Crusher 12681 | -6/Waste | Crushed by Compactor (1 part destroyed, 2 dropped) 12684 | -6/Waste | Spotted C-40 Crusher 12708 | -6/Waste | Spotted C-40 Crusher 12750 | -6/Waste | EMP discharged 12750 | -6/Waste | System corruption reached 30% 12775 | -6/Waste | Spotted C-40 Crusher 12850 | -6/Waste | EMP discharged 12923 | -6/Waste | Spotted C-40 Crusher 12925 | -6/Waste | Discovered new exit (range 10) 12937 | -6/Waste | Identified exit to Factory 12938 | -6/Waste | Entered Factory 12979 | -6/Factory | Build established: Hauler-Mutant 13285 | -6/Factory | Build established: Hauler-Gunner 14284 | -6/Factory | Found Prototype Device 14284 | -6/Factory | Identified Exp. Terrain Scanner 14876 | -6/Factory | Discovered exit to Factory (range 4) 14918 | -6/Factory | Entered another Factory area 14918 | -5/Factory | Evolved 2 slots: Utility x2 14919 | -5/Factory | Identified exit to Upper Caves 15986 | -5/Factory | Repaired Lrg. Storage Unit 16363 | -5/Factory | Lost 3 parts (1n2u) 16654 | -5/Factory | Lost 3 parts (3w) 16658 | -5/Factory | Build established: Scavenger-Gunner 17006 | -5/Factory | System corruption reached 10% 17018 | -5/Factory | First assault squad dispatched 17021 | -5/Factory | Lost 3 parts (2u1w) 17038 | -5/Factory | Incoming assault squad redirected 17202 | -5/Factory | Incoming investigation squad redirected 17297 | -5/Factory | Discovered new exit (range 8) 17557 | -5/Factory | Entered Upper Caves 17576 | -5/Upper Caves | Encountered a Warlord checkpoint 17689 | -5/Upper Caves | Learned location of Warlord (-5) 17760 | -5/Upper Caves | Spotted HD-PFI(f) 17761 | -5/Upper Caves | Encountered a Master Thief 17761 | -5/Upper Caves | AWS/Autocannon stolen by Master Thief 17856 | -5/Upper Caves | Lost 3 parts (1n1u1w) 17877 | -5/Upper Caves | Spotted XM-GM6(f) 17878 | -5/Upper Caves | Encountered a Master Thief 17879 | -5/Upper Caves | KE Penetrator stolen by Master Thief 17887 | -5/Upper Caves | Spotted R1-K5M(f) 17888 | -5/Upper Caves | Encountered a Master Thief 17889 | -5/Upper Caves | Adv. Transmission Jammer stolen by Master Thief 18275 | -5/Upper Caves | Discovered new exit (range 9) 18287 | -5/Upper Caves | Identified exit to Upper Caves 18288 | -5/Upper Caves | Entered another Upper Caves area 18456 | -5/Upper Caves | Spotted GO-8XZ(f) 18458 | -5/Upper Caves | Encountered a Master Thief 18481 | -5/Upper Caves | Destroyed GO-8XZ(f) 18489 | -5/Upper Caves | Spotted VO-CSY(f) 18490 | -5/Upper Caves | Encountered a Master Thief 18492 | -5/Upper Caves | Imp. Focal Shield stolen by Master Thief 18623 | -5/Upper Caves | Core integrity fell below 50% 18675 | -5/Upper Caves | Lost 8 parts (1p3n2u2w) 18758 | -5/Upper Caves | Attracted the attention of an 0b10 checkpoint 18813 | -5/Upper Caves | Lost 4 parts (1p2n1w) 18900 | -5/Upper Caves | Build established: Scavenger-Mutant 18984 | -5/Upper Caves | Core integrity fell below 20% 19020 | -5/Upper Caves | Destroyed 7 combat bots 19030 | -5/Upper Caves | Lost 10 parts (1p6u3w) 19213 | -5/Upper Caves | Discovered new exit (range 5) 19219 | -5/Upper Caves | Identified exit to Warlord 19220 | -5/Upper Caves | Entered Warlord 19260 | -5/Warlord | Build established: Mutant 19270 | -5/Warlord | System corruption cleaned by Quarantine Array 19783 | -5/Warlord | Warlord's base attacked by MAIN.C 19850 | -5/Warlord | Met Warlord 19872 | -5/Warlord | Opened Warlord's prototype stash 19877 | -5/Warlord | Found Prototype Reactor 19883 | -5/Warlord | Found Prototype Device 19883 | -5/Warlord | Identified Exp. Cloaking Device 19903 | -5/Warlord | Found Prototype Processor 19903 | -5/Warlord | Identified Exp. Armor Integrity Analyzer 20133 | -5/Warlord | Build established: Commander-Mutant 20133 | -5/Warlord | Warlord forces counterattacked 20161 | -5/Warlord | Opened side exit 20168 | -5/Warlord | Spotted Striker 20182 | -5/Warlord | Allies destroyed Striker 20385 | -5/Warlord | Discovered new exit (range 10) 20395 | -5/Warlord | Identified exit to Proximity Caves 20397 | -5/Warlord | Entered Proximity Caves 20515 | -4/Proximity Caves | Learned location of Quarantine (-3) 20684 | -4/Proximity Caves | Build established: Scavenger-Gunner 20840 | -4/Proximity Caves | Learned location of Testing (-2) 21136 | -4/Proximity Caves | Released all parts (10) 21137 | -4/Proximity Caves | Destroyed by G-67 Veteran with Plasma Rifle Last Messages --------------- 21136_ Med. Treads destroyed. 21136_ Gauss Rifle destroyed. 21136_ Enh. Armored Leg destroyed. 21136_ Released Adv. Heat Sink. 21136_ Adv. Heat Sink crushed and broken. 21136_ Released Exp. Cloaking Device. 21136_ Exp. Cloaking Device crushed and broken. 21136_ Released Exp. Targeting Computer. 21136_ Released Adv. Signal Interpreter. 21136_ Released Enh. Armored Leg. 21136_ Enh. Armored Leg crushed and broken. 21136_ Released Imp. Power Shielding. 21136_ Imp. Power Shielding crushed and broken. 21136_ Released Exp. Armor Integrity Analyzer. 21136_ Released Lgt. Antimatter Reactor. 21136_ Lgt. Antimatter Reactor crushed and broken. 21136_ Released Hvy. Machine Gun. 21136_ Hvy. Machine Gun crushed and broken. 21136_ Released Exp. Matter Compressor. 21136_ Exp. Matter Compressor crushed and broken. Map ----- +----------------------------------------------------+ | ??????### #### #????? ????????????? | | ????????# #???# ######% ???????????? | | ???????####???## #### % ! ???????????? | | ????#### ##???# #?## ???????????? | | ???## #???# ##?# ???????????? | | ??## ##?# #?## ???????????? | | ??# #?# #### " ###????????????? | | ??# #??###### "%" #??????????????? | | ???# #?????## ### " #?????????????? | | ??## #???### ##?? ?????????????? | | ??# ##### ##??? ## ?????????????? | | ???# ##???? ##?### ??????????????? | | #### ##????? ##?????? ??????????????? | | ########??????? #?????????#????????????? | | """" # ##?????????????? ???????? #???###??????? | | " # ##?????????????? ??????? ### ???????? | | "" ## #######?????????#??????? " ?????????? | | ## #???????????????? "%"???????????? | | #### #???????????????# #????????????? | | ???## ### #?????########## ##???????????? | | ????## ### #?????# #???????????? | | ?????## ## #???????# #????????????? | | ??????## ### ###??????## ## $ ##????????????? | | ???????# ### # #??????????# ######?????????????? | | ???????# ### ############g#??????????????????? | | ???????# g% !!![@gll!#??????????????????? | | ???????## !#############??????????????????? | | ????????###### ##??????????????????????????????? | | ?????????????#####???????????????????????????????? | | ?????????????????????????????????????????????????? | | ?????????????????????????????????????????????????? | | ?????????????????????????????????????????????????? | | ?????????????????????????????????????????????????? | | ?????????????????????????????????????????????????? | | ?????????????????????????????????????????????????? | | ?????????????????????????????????????????????????? | | ?????????????????????????????????????????????????? | | ?????????????????????????????????????????????????? | | ?????????????????????????????????????????????????? | | ?????????????????????????????????????????????????? | | ?????????????????????????????????????????????????? | | ?????????????????????????????????????????????????? | | ?????????????????????????????????????????????????? | | ?????????????????????????????????????????????????? | | | | | | | | | | | | | +----------------------------------------------------+ Best States ------------- Heat Dissipation 85 Energy Generation 21 Energy Capacity 1215 Matter Stores 692 Matter Capacity 800 Sight Range 16 Robot Scan Range 30 Terrain Scan Range 30 Terrain Scan Density 10 Jamming Range 16 Cloak Strength 4 Armor Coverage 1000 Resistance: KI 30 Resistance: TH 30 Resistance: EX 90 Resistance: EM 25 Power Shielding 66 Weapon Shielding 66 Evasion (%) 40 Targeting Accuracy 20 Target Analysis 6 Armor Integrity Analysis 90 Recoil Reduction 2 Particle Charging 20 Item Schematics ----------------- Combat Drone Bay | -7/Data Miner | Free Lgt. Regenerative Plating | -7/Data Miner | Free Exp. Cesium-ion Thruster | -7/Data Miner | Free Exp. Sensor Array | -7/Data Miner | Free Exp. Transmission Jammer | -7/Data Miner | Free Cloaking Device | -7/Data Miner | Free Hcp. Storage Unit | -6/Factory | Scanalyzed Lrg. Storage Unit | -6/Factory | Scanalyzed Robot Schematics ------------------ S-27 Virus | -7/Data Miner | Free G-50 Soldier | -7/Data Miner | Free G-67 Veteran | -7/Data Miner | Free L-41 Fighter | -7/Data Miner | Free H-66 Slayer | -7/Data Miner | Free I-36 Angel | -7/Data Miner | Free Fabricated ------------ Exp. Sensor Array | x1 | -6/Factory Exp. Sensor Array | x1 | -6/Factory Exp. Sensor Array | x1 | -6/Factory Alien Tech Used ----------------- None Achievements -------------- None Challenges ------------ None Game ------ Seed NuclearCoilMagmablaster Manual? 0 Play Time 03:24:54 Cumulative 185.4 hours Start 2020.07.03 @ 20:01:21 End 2020.07.04 @ 03:52:46 Sessions 9 Manual Loads 0 Difficulty Rogue Special Mode None Game No. 103 Rogue 101 Adventurer 1 Explorer 1 Win Type - Total 2 Types 2/0/0/0/0/0/0 Lore% 63 Gallery% 75 Achievement% 55 Wizard Run 0 Options --------- ASCII 0 Keyboard 1 Movement Numpad Keybinds 1 Fullscreen 2 Font 24/Terminus Map View 76x50 Tactical HUD 1 Map Filters NONE Filters NONE Steam 1 RUN: a6b31fe0-60d9-4e37-a122-a2a946ab9f39